fUST/lending_fUST_20240116
["ID","MTS","AMOUNT","RATE_DAILY","PERIOD"]
[311709632,1705347774145,-465.01549845,0.00027121,2]
[311709640,1705347842430,-154.98450155,0.00027121,4]
[311709641,1705347842451,-670.75095685,0.00027121,2]
[311709642,1705347842473,-155.06510642,0.00027121,2]
[311709643,1705347842493,-241.19182831,0.00028,2]
[311709644,1705347842513,-157.46429525,0.0002859,2]
[311709645,1705347842533,-442.54331162,0.0002859,2]
[311709653,1705347909150,-154.98450155,0.00027121,4]
[311709654,1705347909170,-1822.05331204,0.00027121,2]
[311709655,1705347909194,-22446.96218641,0.00028056,2]
[311709659,1705347980581,-154.98450155,0.00025248,4]
[311709660,1705347980604,-50000.0,0.00026669,2]
[311709661,1705347980626,-5165.01549845,0.00026693,3]
[311709667,1705348048219,-154.98450155,0.00024031,4]
[311709668,1705348048242,-1308.03450155,0.00026693,3]
[311709669,1705348048267,-50000.0,0.00026703,2]
[311709670,1705348048422,-4021.9809969,0.00027214,2]
[311709683,1705348116760,-8750.56627631,0.00026398,2]
[311709684,1705348116782,-154.98450155,0.00027121,4]
[311709685,1705348116802,-619.93097556,0.00027214,2]
[311709686,1705348116822,-3207.51824658,0.00027214,2]
[311709841,1705348237856,-500.0,0.00026396,2]
[311709842,1705348237866,-976.79905731,0.00026397,2]
[311709843,1705348237875,-154.9690062,0.00026397,4]
[311709845,1705348237884,-8750.56627631,0.00026398,2]
[311709847,1705348237894,-1112.22182837,0.00027121,2]
[311709849,1705348237903,-5847.9700678,0.00027121,2]
[311709851,1705348237912,-6.84184559,0.00027214,2]
[311709853,1705348237921,-313.51664528,0.00027214,2]
[311709854,1705348237930,-200.0,0.00027214,2]
[311709856,1705348237939,-1822.05331204,0.00027214,2]
[311709858,1705348237948,-7371.26031948,0.000274,2]
[311709860,1705348237958,-305.27027518,0.00028,2]
[311709862,1705348237968,-189.461219,0.00028047,2]
[311709865,1705348237977,-2453.03781359,0.00028056,2]
[311709866,1705348237987,-166.666666,0.00028148,2]
[311709869,1705348237996,-437.83082775,0.00028482,2]
[311709871,1705348238005,-8393.22432645,0.0002859,2]
[311709872,1705348238015,-171.1844632,0.000289,4]
[311709874,1705348238024,-155.12254681,0.00029,2]
[311709877,1705348238033,-2454.18896115,0.00029,2]
[311709879,1705348238042,-167.647572,0.00029067,2]
[311709881,1705348238052,-200.0,0.000297,4]
[311709883,1705348238061,-200.0,0.00029832,15]
[311709885,1705348238070,-4319.43390596,0.00029863,2]
[311709887,1705348238080,-681.78811125,0.0003,3]
[311709889,1705348238089,-398.25,0.0003,2]
[311709891,1705348238098,-204.0,0.0003,2]
[311709893,1705348238107,-1413.42859915,0.00030034,2]
[311709894,1705348238116,-297.8809135,0.00030035,4]
[311709896,1705348238125,-200.38451189,0.00030036,2]
[311709898,1705348238134,-5394.2,0.00030126,3]
[311709900,1705348238142,-4495.17,0.00030126,3]
[311709902,1705348238152,-3745.98,0.00030126,3]
[311709904,1705348238161,-155.01395126,0.00030134,2]
[311709906,1705348238170,-309.87452717,0.00030134,4]
[311709908,1705348238180,-198.98525444,0.00030134,4]
[311709910,1705348238189,-155.26905646,0.00030135,4]
[311709912,1705348238199,-242.70971485,0.00030135,4]
[311709914,1705348238208,-160.756103,0.00030135,4]
[311709916,1705348238218,-155.01395126,0.00030135,4]
[311709918,1705348238227,-154.98450155,0.00030136,2]
[311709919,1705348238236,-502.04178712,0.00030136,2]
[311709920,1705348238245,-500.0,0.00030136,2]
[311709921,1705348238254,-500.0,0.00030136,2]
[311709923,1705348238263,-500.0,0.00030136,2]
[311709924,1705348238273,-500.0,0.00030136,2]
[311709926,1705348238282,-577.45,0.00030136,2]
[311709927,1705348238291,-500.0,0.00030136,2]
[311709929,1705348238300,-574.30974102,0.00030136,2]
[311709931,1705348238309,-626.12,0.00030136,2]
[311709933,1705348238318,-500.0,0.00030136,2]
[311709935,1705348238327,-500.0,0.00030136,2]
[311709937,1705348238336,-635.0,0.00030136,2]
[311709939,1705348238345,-555.69756394,0.00030136,2]
[311709941,1705348238354,-500.0,0.00030136,2]
[311709943,1705348238365,-397.33178559,0.00030136,2]
[311709945,1705348238375,-503.8574285,0.00030136,2]
[311709947,1705348238385,-500.0,0.00030136,2]
[311709949,1705348238393,-229.26309616,0.00030136,2]
[311709951,1705348238403,-500.0,0.00030136,2]
[311709953,1705348238412,-449.38230896,0.00030136,2]
[311709955,1705348238421,-500.0,0.00030136,2]
[311709957,1705348238430,-500.0,0.00030136,2]
[311709959,1705348238439,-500.0,0.00030136,2]
[311709961,1705348238448,-500.0,0.00030136,2]
[311709963,1705348238456,-500.0,0.00030136,2]
[311709965,1705348238466,-500.44765468,0.00030136,2]
[311709967,1705348238475,-500.0,0.00030136,2]
[311709969,1705348238484,-500.0,0.00030136,2]
[311709971,1705348238493,-507.22407258,0.00030136,2]
[311709973,1705348238502,-500.0,0.00030136,2]
[311709975,1705348238511,-500.0,0.00030136,2]
[311709977,1705348238520,-500.0,0.00030136,2]
[311709979,1705348238529,-500.0,0.00030136,2]
[311709981,1705348238539,-500.0,0.00030136,2]
[311709983,1705348238547,-500.0,0.00030136,2]
[311709985,1705348238557,-621.87,0.00030136,2]
[311709987,1705348238567,-256.92126022,0.00030136,2]
[311709989,1705348238576,-500.0,0.00030136,2]
[311709991,1705348238584,-500.0,0.00030136,2]
[311709993,1705348238593,-533.92341691,0.00030136,2]
[311709995,1705348238603,-501.59674884,0.00030136,2]
[311709997,1705348238612,-505.6647202,0.00030136,2]
[311709999,1705348238621,-500.0,0.00030136,2]
[311710001,1705348238631,-500.0,0.00030136,2]
[311710003,1705348238640,-384.57471689,0.00030136,2]
[311710005,1705348238650,-1000.0,0.00030136,2]
[311710007,1705348238660,-500.0,0.00030136,2]
[311710009,1705348238669,-1003.24708738,0.00030136,2]
[311710011,1705348238678,-500.0,0.00030136,2]
[311710013,1705348238687,-500.0,0.00030136,2]
[311710015,1705348238697,-501.49196383,0.00030136,2]
[311710017,1705348238705,-501.99211654,0.00030136,2]
[311710019,1705348238715,-500.0,0.00030136,2]
[311710021,1705348238726,-157.72893197,0.00030136,2]
[311710023,1705348238735,-500.0,0.00030136,2]
[311710025,1705348238744,-500.0,0.00030136,2]
[311710027,1705348238753,-473.89489476,0.00030136,2]
[311710029,1705348238762,-500.0,0.00030136,2]
[311710031,1705348238771,-500.0,0.00030136,2]
[311710033,1705348238780,-500.0,0.00030136,2]
[311710035,1705348238790,-500.0,0.00030136,2]
[311710037,1705348238799,-500.0,0.00030136,2]
[311710039,1705348238808,-500.0,0.00030136,2]
[311710041,1705348238817,-865.06,0.00030136,2]
[311710043,1705348238827,-514.79494569,0.00030136,2]
[311710045,1705348238836,-527.20807009,0.00030136,2]
[311710047,1705348238845,-509.96359719,0.00030136,2]
[311710049,1705348238855,-501.20711397,0.00030136,2]
[311710051,1705348238864,-500.0,0.00030136,2]
[311710053,1705348238873,-507.28630478,0.00030136,2]
[311710055,1705348238882,-500.0,0.00030136,2]
[311710057,1705348238891,-500.0,0.00030136,2]
[311710059,1705348238901,-500.0,0.00030136,2]
[311710061,1705348238910,-500.0,0.00030136,2]
[311710063,1705348238919,-611.73,0.00030136,2]
[311710065,1705348238929,-202.46857956,0.00030136,2]
[311710067,1705348238938,-500.0,0.00030136,2]
[311710069,1705348238947,-501.11966255,0.00030136,2]
[311710071,1705348238956,-150.0,0.00030136,2]
[311710073,1705348238965,-500.0,0.00030136,2]
[311710075,1705348238976,-500.0,0.00030136,2]
[311710077,1705348238985,-627.74839216,0.00030136,2]
[311710079,1705348238994,-500.0,0.00030136,2]
[311710081,1705348239003,-500.0,0.00030136,2]
[311710083,1705348239014,-500.0,0.00030136,2]
[311710085,1705348239026,-500.0,0.00030136,2]
[311710087,1705348239037,-500.0,0.00030136,2]
[311710089,1705348239053,-500.0,0.00030136,2]
[311710091,1705348239069,-502.82129946,0.00030136,2]
[311710093,1705348239078,-500.0,0.00030136,2]
[311710095,1705348239087,-500.0,0.00030136,2]
[311710097,1705348239096,-640.00492677,0.00030136,2]
[311710099,1705348239106,-511.65056995,0.00030136,2]
[311710101,1705348239115,-608.05,0.00030136,2]
[311710103,1705348239125,-500.0,0.00030136,2]
[311710106,1705348239135,-500.0,0.00030136,2]
[311710108,1705348239144,-500.0,0.00030136,2]
[311710110,1705348239153,-500.0,0.00030136,2]
[311710111,1705348239162,-500.0,0.00030136,2]
[311710114,1705348239171,-1059.7,0.00030136,2]
[311710116,1705348239180,-623.09530042,0.00030136,2]
[311710117,1705348239190,-500.0,0.00030136,2]
[311710119,1705348239199,-504.74242484,0.00030136,2]
[311710121,1705348239208,-500.0,0.00030136,2]
[311710123,1705348239219,-500.0,0.00030136,2]
[311710125,1705348239228,-500.0,0.00030136,2]
[311710127,1705348239237,-500.0,0.00030136,2]
[311710130,1705348239246,-500.23364505,0.00030136,2]
[311710132,1705348239255,-501.71054968,0.00030136,2]
[311710134,1705348239264,-476.36050445,0.00030136,2]
[311710136,1705348239274,-659.92,0.00030136,2]
[311710139,1705348239283,-163.83594978,0.00030136,2]
[311710141,1705348239292,-822.33,0.00030136,2]
[311710142,1705348239301,-500.0,0.00030136,2]
[311710144,1705348239310,-512.41301664,0.00030136,2]
[311710146,1705348239319,-502.53967213,0.00030136,2]
[311710157,1705348239409,-500.39389175,0.00030136,2]
[311710159,1705348239419,-280.72371038,0.00030136,2]
[311710162,1705348239435,-219.27628962,0.00030136,2]
[311710164,1705348239444,-500.0,0.00030136,2]
[311710166,1705348239453,-616.84550266,0.00030136,2]
[311710168,1705348239462,-500.0,0.00030136,2]
[311710170,1705348239472,-500.0,0.00030136,2]
[311710172,1705348239482,-500.0,0.00030136,2]
[311710173,1705348239492,-297.68122373,0.00030136,2]
[311710175,1705348239501,-500.0,0.00030136,2]
[311710177,1705348239510,-500.0,0.00030136,2]
[311710179,1705348239520,-506.41801766,0.00030136,2]
[311710181,1705348239530,-500.0,0.00030136,2]
[311710183,1705348239539,-304.64569029,0.00030136,2]
[311710185,1705348239548,-500.0,0.00030136,2]
[311710187,1705348239557,-252.5833351,0.00030136,2]
[311710189,1705348239567,-794.74,0.00030136,2]
[311710191,1705348239576,-500.0,0.00030136,2]
[311710193,1705348239586,-643.11957261,0.00030136,2]
[311710195,1705348239595,-500.0,0.00030136,2]
[311710197,1705348239605,-173.39777827,0.00030136,2]
[311710199,1705348239614,-602.05912595,0.00030136,2]
[311710201,1705348239623,-602.94191662,0.00030136,2]
[311710203,1705348239632,-500.0,0.00030136,2]
[311710205,1705348239642,-219.80773026,0.00030136,2]
[311710207,1705348239650,-500.0,0.00030136,2]
[311710209,1705348239660,-500.0,0.00030136,2]
[311710211,1705348239670,-500.0,0.00030136,2]
[311710213,1705348239678,-500.65301249,0.00030136,2]
[311710215,1705348239687,-500.0,0.00030136,2]
[311710217,1705348239696,-500.0,0.00030136,2]
[311710219,1705348239705,-500.0,0.00030136,2]
[311710221,1705348239714,-598.53355378,0.00030136,2]
[311710223,1705348239725,-500.0,0.00030136,2]
[311710225,1705348239734,-500.0,0.00030136,2]
[311710227,1705348239743,-500.0,0.00030136,2]
[311710229,1705348239752,-500.0,0.00030136,2]
[311710231,1705348239762,-355.51433788,0.00030136,2]
[311710233,1705348239771,-500.0,0.00030136,2]
[311710235,1705348239780,-611.17086737,0.00030136,2]
[311710237,1705348239788,-220.10757658,0.00030136,2]
[311710239,1705348239797,-508.51230986,0.00030136,2]
[311710241,1705348239806,-232.9672703,0.00030136,2]
[311710243,1705348239816,-500.0,0.00030136,2]
[311710245,1705348239825,-376.9775158,0.00030136,2]
[311710247,1705348239834,-500.0,0.00030136,2]
[311710249,1705348239844,-225.18716407,0.00030136,2]
[311710251,1705348239853,-500.0,0.00030136,2]
[311710253,1705348239862,-500.0,0.00030136,2]
[311710255,1705348239871,-500.0,0.00030136,2]
[311710257,1705348239880,-502.86947802,0.00030136,2]
[311710259,1705348239890,-500.0,0.00030136,2]
[311710261,1705348239899,-500.0,0.00030136,2]
[311710263,1705348239908,-500.0,0.00030136,2]
[311710265,1705348239918,-500.0,0.00030136,2]
[311710267,1705348239927,-500.0,0.00030136,2]
[311710269,1705348239936,-2391.63,0.00030136,2]
[311710271,1705348239946,-5163.63,0.00030136,2]
[311710273,1705348239955,-500.0,0.00030136,2]
[311710275,1705348239964,-163.18093818,0.00030136,2]
[311710277,1705348239976,-500.0,0.00030136,2]
[311710279,1705348239986,-500.0,0.00030136,2]
[311710280,1705348239995,-500.85643977,0.00030136,2]
[311710282,1705348240004,-500.0,0.00030136,2]
[311710284,1705348240013,-500.0,0.00030136,2]
[311710286,1705348240022,-5038.68,0.00030136,2]
[311710288,1705348240031,-572.92806522,0.00030136,2]
[311710290,1705348240040,-506.7967264,0.00030136,2]
[311710292,1705348240049,-500.0,0.00030136,2]
[311710294,1705348240058,-500.0,0.00030136,2]
[311710296,1705348240067,-500.0,0.00030136,2]
[311710298,1705348240076,-547.11543908,0.00030136,2]
[311710300,1705348240086,-1172.47,0.00030136,2]
[311710302,1705348240095,-502.4278378,0.00030136,2]
[311710304,1705348240105,-504.39363086,0.00030136,2]
[311710306,1705348240114,-500.0,0.00030136,2]
[311710308,1705348240123,-500.0,0.00030136,2]
[311710311,1705348240142,-500.0,0.00030136,2]
[311710314,1705348240153,-500.0,0.00030136,2]
[311710316,1705348240164,-500.0,0.00030136,2]
[311710318,1705348240173,-500.0,0.00030136,2]
[311710320,1705348240183,-505.67458463,0.00030136,2]
[311710322,1705348240192,-500.0,0.00030136,2]
[311710324,1705348240204,-500.0,0.00030136,2]
[311710326,1705348240214,-253.24117854,0.00030136,2]
[311710328,1705348240226,-500.0,0.00030136,2]
[311710330,1705348240236,-503.2198619,0.00030136,2]
[311710332,1705348240245,-500.0,0.00030136,2]
[311710334,1705348240255,-2486.03,0.00030136,2]
[311710336,1705348240264,-500.0,0.00030136,2]
[311710338,1705348240274,-168.08126236,0.00030136,2]
[311710340,1705348240284,-500.0,0.00030136,2]
[311710342,1705348240294,-500.0,0.00030136,2]
[311710345,1705348240304,-505.462296,0.00030136,2]
[311710347,1705348240314,-500.0,0.00030136,2]
[311710349,1705348240323,-500.0,0.00030136,2]
[311710351,1705348240333,-500.0,0.00030136,2]
[311710353,1705348240343,-500.0,0.00030136,2]
[311710355,1705348240352,-626.87,0.00030136,2]
[311710357,1705348240362,-500.0,0.00030136,2]
[311710359,1705348240374,-231.41577628,0.00030136,2]
[311710361,1705348240383,-501.28852085,0.00030136,2]
[311710363,1705348240393,-243.60659354,0.00030136,2]
[311710365,1705348240403,-502.22848087,0.00030136,2]
[311710367,1705348240413,-500.0,0.00030136,2]
[311710369,1705348240422,-200.0,0.00030136,2]
[311710371,1705348240432,-500.0,0.00030136,2]
[311710373,1705348240442,-500.0,0.00030136,2]
[311710375,1705348240451,-500.0,0.00030136,2]
[311710377,1705348240461,-208.84713893,0.00030136,2]
[311710378,1705348240471,-12031.8,0.00030136,2]
[311710379,1705348240480,-500.0,0.00030136,2]
[311710380,1705348240490,-500.0,0.00030136,2]
[311710381,1705348240499,-500.0,0.00030136,2]
[311710382,1705348240509,-3020.64,0.00030136,2]
[311710383,1705348240518,-500.0,0.00030136,2]
[311710384,1705348240527,-353.20690116,0.00030136,2]
[311710385,1705348240536,-500.49527847,0.00030136,2]
[311710386,1705348240545,-500.0,0.00030136,2]
[311710387,1705348240554,-500.0,0.00030136,2]
[311710388,1705348240563,-1159.69,0.00030136,2]
[311710389,1705348240578,-4620.48,0.00030136,2]
[311710390,1705348240591,-317.3818262,0.00030136,2]
[311710391,1705348240600,-500.0,0.00030136,2]
[311710392,1705348240609,-500.0,0.00030136,2]
[311710393,1705348240618,-500.0,0.00030136,2]
[311710394,1705348240628,-500.0,0.00030136,2]
[311710395,1705348240636,-220.0,0.00030136,2]
[311710396,1705348240646,-596.01,0.00030136,2]
[311710397,1705348240654,-596.07060748,0.00030136,2]
[311710398,1705348240663,-500.0,0.00030136,2]
[311710399,1705348240672,-1676.34,0.00030136,2]
[311710400,1705348240681,-418.87603852,0.00030136,2]
[311710401,1705348240690,-500.0,0.00030136,2]
[311710402,1705348240699,-500.0,0.00030136,2]
[311710403,1705348240707,-500.0,0.00030136,2]
[311710404,1705348240716,-500.0,0.00030136,2]
[311710405,1705348240727,-19417.06,0.00030136,2]
[311710406,1705348240736,-500.0,0.00030136,2]
[311710407,1705348240745,-588.59,0.00030136,2]
[311710408,1705348240755,-500.0,0.00030136,2]
[311710410,1705348240765,-500.0,0.00030136,2]
[311710412,1705348240775,-500.0,0.00030136,2]
[311710414,1705348240785,-500.0,0.00030136,2]
[311710416,1705348240794,-1397.71,0.00030136,2]
[311710418,1705348240803,-500.0,0.00030136,2]
[311710420,1705348240814,-393.2744873,0.00030136,2]
[311710421,1705348240823,-200.21982101,0.00030136,2]
[311710422,1705348240832,-335.31248943,0.00030136,2]
[311710423,1705348240841,-500.0,0.00030136,2]
[311710426,1705348240852,-500.0,0.00030136,2]
[311710428,1705348240862,-204.94596919,0.00030136,2]
[311710431,1705348240872,-502.42486477,0.00030136,2]
[311710434,1705348240882,-500.0,0.00030136,2]
[311710437,1705348240891,-603.37503213,0.00030136,2]
[311710439,1705348240901,-500.0,0.00030136,10]
[311710442,1705348240910,-2246.28,0.00030136,2]
[311710443,1705348240922,-725.14,0.00030136,2]
[311710445,1705348240933,-500.0,0.00030136,2]
[311710448,1705348240945,-500.0,0.00030136,2]
[311710449,1705348240957,-500.0,0.00030136,2]
[311710451,1705348240968,-500.0,0.00030136,2]
[311710454,1705348240980,-512.2627489,0.00030136,2]
[311710455,1705348240990,-500.0,0.00030136,2]
[311710458,1705348241001,-500.0,0.00030136,2]
[311710460,1705348241011,-1214.33,0.00030136,2]
[311710461,1705348241022,-500.0,0.00030136,2]
[311710464,1705348241032,-500.0,0.00030136,2]
[311710465,1705348241042,-301.39905633,0.00030136,2]
[311710467,1705348241053,-500.0,0.00030136,2]
[311710469,1705348241063,-500.0,0.00030136,2]
[311710471,1705348241073,-202.68601616,0.00030136,2]
[311710473,1705348241083,-500.0,0.00030136,2]
[311710475,1705348241092,-500.0,0.00030136,2]
[311710478,1705348241102,-508.34806306,0.00030136,2]
[311710479,1705348241112,-506.74811527,0.00030136,2]
[311710481,1705348241121,-674.82,0.00030136,2]
[311710483,1705348241131,-500.0,0.00030136,2]
[311710485,1705348241141,-500.0,0.00030136,2]
[311710488,1705348241152,-500.0,0.00030136,2]
[311710489,1705348241164,-500.0,0.00030136,2]
[311710492,1705348241174,-500.0,0.00030136,2]
[311710494,1705348241185,-500.0,0.00030136,2]
[311710495,1705348241194,-500.0,0.00030136,2]
[311710497,1705348241205,-691.43,0.00030136,2]
[311710499,1705348241214,-502.23964896,0.00030136,2]
[311710502,1705348241227,-502.64320736,0.00030136,2]
[311710503,1705348241236,-500.0,0.00030136,2]
[311710505,1705348241247,-500.0,0.00030136,2]
[311710507,1705348241258,-500.0,0.00030136,2]
[311710510,1705348241268,-500.0,0.00030136,2]
[311710511,1705348241277,-4118.94,0.00030136,2]
[311710513,1705348241291,-515.20044947,0.00030136,2]
[311710523,1705348241386,-500.0,0.00030136,2]
[311710525,1705348241396,-624.39,0.00030136,2]
[311710527,1705348241406,-500.0,0.00030136,2]
[311710530,1705348241415,-427.61481384,0.00030136,2]
[311710532,1705348241425,-501.13724917,0.00030136,2]
[311710533,1705348241434,-500.0,0.00030136,2]
[311710535,1705348241443,-510.37006199,0.00030136,2]
[311710538,1705348241453,-848.07,0.00030136,2]
[311710539,1705348241466,-500.0,0.00030136,2]
[311710541,1705348241478,-531.48250148,0.00030136,2]
[311710543,1705348241488,-500.0,0.00030136,2]
[311710545,1705348241498,-502.41032459,0.00030136,2]
[311710547,1705348241509,-893.67,0.00030136,2]
[311710550,1705348241519,-500.0,0.00030136,2]
[311710551,1705348241529,-3070.13,0.00030136,2]
[311710553,1705348241539,-500.0,0.00030136,2]
[311710555,1705348241548,-520.74257972,0.00030136,2]
[311710557,1705348241557,-500.0,0.00030136,2]
[311710559,1705348241566,-536.0178926,0.00030136,2]
[311710561,1705348241575,-997.51,0.00030136,2]
[311710563,1705348241584,-500.0,0.00030136,2]
[311710565,1705348241594,-500.0,0.00030136,2]
[311710567,1705348241603,-500.0,0.00030136,2]
[311710570,1705348241616,-500.0,0.00030136,2]
[311710571,1705348241629,-356.58383934,0.00030136,2]
[311710573,1705348241639,-500.0,0.00030136,2]
[311710575,1705348241648,-500.0,0.00030136,2]
[311710578,1705348241658,-1151.18,0.00030136,2]
[311710580,1705348241667,-500.0,0.00030136,2]
[311710581,1705348241676,-500.0,0.00030136,2]
[311710583,1705348241685,-500.0,0.00030136,2]
[311710585,1705348241695,-500.0,0.00030136,2]
[311710587,1705348241704,-500.0,0.00030136,2]
[311710589,1705348241714,-1918.92,0.00030136,2]
[311710591,1705348241724,-198.8577961,0.00030137,2]
[311710593,1705348241734,-198.8577961,0.00030137,2]
[311710595,1705348241744,-198.8577961,0.00030137,2]
[311710597,1705348241754,-198.8577961,0.00030137,2]
[311710599,1705348241764,-198.8577961,0.00030137,2]
[311710601,1705348241773,-198.8577961,0.00030137,2]
[311710603,1705348241782,-198.8577961,0.00030137,2]
[311710605,1705348241793,-198.8577961,0.00030137,2]
[311710607,1705348241803,-198.8577961,0.00030137,2]
[311710609,1705348241813,-198.8577961,0.00030137,2]
[311710611,1705348241823,-198.8577961,0.00030137,2]
[311710613,1705348241834,-198.8577961,0.00030137,2]
[311710615,1705348241844,-198.8577961,0.00030137,2]
[311710617,1705348241855,-198.8577961,0.00030137,2]
[311710619,1705348241865,-395.3208574,0.00030137,2]
[311710621,1705348241875,-310.0,0.00030232,2]
[311710623,1705348241885,-209.0460096,0.00030245,2]
[311710625,1705348241895,-1000.0,0.00030245,7]
[311710627,1705348241905,-174.65243094,0.00030245,2]
[311710629,1705348241915,-16050.83320476,0.0003031,2]
[311710631,1705348241925,-500.0,0.00030408,2]
[311710633,1705348241935,-500.0,0.00030409,2]
[311710635,1705348241945,-500.0,0.00030409,2]
[311710637,1705348241954,-500.0,0.00030409,2]
[311710639,1705348241963,-505.16618972,0.00030409,2]
[311710641,1705348241975,-500.0,0.00030409,5]
[311710643,1705348241985,-512.04464966,0.00030409,2]
[311710645,1705348241994,-239.66,0.00030409,2]
[311710647,1705348242005,-239.66,0.00030409,2]
[311710649,1705348242014,-239.66,0.00030409,2]
[311710651,1705348242023,-344.73296744,0.0003041,4]
[311710653,1705348242032,-501.00894022,0.0003041,2]
[311710655,1705348242041,-500.0,0.0003041,2]
[311710657,1705348242050,-500.0,0.0003041,2]
[311710659,1705348242059,-500.0,0.0003041,2]
[311710661,1705348242068,-577.45,0.0003041,2]
[311710663,1705348242077,-500.0,0.0003041,2]
[311710665,1705348242086,-626.12,0.0003041,2]
[311710667,1705348242095,-500.0,0.0003041,2]
[311710669,1705348242103,-635.0,0.0003041,2]
[311710670,1705348242113,-615.40630783,0.0003041,2]
[311710672,1705348242122,-500.0,0.0003041,2]
[311710674,1705348242131,-500.0,0.0003041,2]
[311710676,1705348242140,-505.95577879,0.0003041,2]
[311710678,1705348242149,-500.0,0.0003041,2]
[311710680,1705348242159,-500.0,0.0003041,2]
[311710682,1705348242167,-500.0,0.0003041,2]
[311710684,1705348242177,-500.0,0.0003041,2]
[311710686,1705348242185,-500.0,0.0003041,2]
[311710688,1705348242195,-500.0,0.0003041,2]
[311710690,1705348242204,-500.0,0.0003041,2]
[311710692,1705348242217,-621.87,0.0003041,2]
[311710694,1705348242227,-500.0,0.0003041,2]
[311710697,1705348242237,-500.0,0.0003041,2]
[311710700,1705348242246,-500.0,0.0003041,2]
[311710703,1705348242255,-500.0,0.0003041,2]
[311710706,1705348242264,-500.0,0.0003041,2]
[311710709,1705348242274,-500.0,0.0003041,2]
[311710711,1705348242283,-500.0,0.0003041,2]
[311710713,1705348242292,-500.0,0.0003041,2]
[311710715,1705348242301,-865.06,0.0003041,2]
[311710717,1705348242310,-500.0,0.0003041,2]
[311710719,1705348242319,-500.0,0.0003041,2]
[311710721,1705348242328,-500.0,0.0003041,2]
[311710723,1705348242337,-506.78614687,0.0003041,2]
[311710725,1705348242347,-500.0,0.0003041,2]
[311710727,1705348242357,-611.73,0.0003041,2]
[311710729,1705348242367,-150.0,0.0003041,2]
[311710731,1705348242381,-500.0,0.0003041,2]
[311710733,1705348242390,-500.0,0.0003041,2]
[311710735,1705348242399,-500.0,0.0003041,2]
[311710737,1705348242408,-344.25649987,0.0003041,2]
[311710739,1705348242417,-507.48338079,0.0003041,2]
[311710742,1705348242426,-608.05,0.0003041,2]
[311710744,1705348242435,-500.0,0.0003041,2]
[311710745,1705348242444,-500.0,0.0003041,2]
[311710747,1705348242453,-500.0,0.0003041,2]
[311710749,1705348242463,-186.76567446,0.0003041,2]
[311710751,1705348242473,-1059.7,0.0003041,2]
[311710753,1705348242483,-500.0,0.0003041,2]
[311710755,1705348242492,-504.91326145,0.0003041,2]
[311710757,1705348242501,-500.0,0.0003041,2]
[311710759,1705348242510,-500.0,0.0003041,2]
[311710761,1705348242519,-659.92,0.0003041,2]
[311710764,1705348242529,-822.33,0.0003041,2]
[311710766,1705348242539,-500.0,0.0003041,2]
[311710768,1705348242548,-500.0,0.0003041,2]
[311710770,1705348242557,-500.0,0.0003041,2]
[311710771,1705348242566,-500.0,0.0003041,2]
[311710773,1705348242575,-500.0,0.0003041,2]
[311710775,1705348242584,-500.0,0.0003041,2]
[311710777,1705348242593,-501.6604041,0.0003041,2]
[311710779,1705348242602,-794.74,0.0003041,2]
[311710781,1705348242612,-500.0,0.0003041,2]
[311710783,1705348242621,-500.0,0.0003041,2]